[Event "Titled Tuesday Blitz May 16 Late 2023"]
[White "Hoffmann, Asa"]
[Black "Gritsenko, Nikolai"]
[WhiteFideId "2001470"]
[BlackFideId "14112493"]
[WhiteElo "2117"]
[BlackElo "2389"]
[Result "0-1"]
[Round "01"]
[TimeControl "180+2"]
[Date "2023.05.16"]
[WhiteClock "0:00:04"]
[BlackClock "0:00:10"]

1. d4 {[%clk 0:02:55]}  d5 {[%clk 0:02:59]} 2. Bg5 {[%clk 0:02:54]}  c6 {[%clk 0:02:56]} 3. e3 {[%clk 0:02:54]}  Qb6 {[%clk 0:02:55]} 4. b3 {[%clk 0:02:51]}  h6 {[%clk 0:02:54]} 5. Bf4 {[%clk 0:02:50]}  Bf5 {[%clk 0:02:53]} 6. Bd3 {[%clk 0:02:50]}  Bxd3 {[%clk 0:02:52]} 7. Qxd3 {[%clk 0:02:50]}  e6 {[%clk 0:02:53]} 8. Nd2 {[%clk 0:02:49]}  Nf6 {[%clk 0:02:50]} 9. Ngf3 {[%clk 0:02:47]}  Nh5 {[%clk 0:02:44]} 10. Be5 {[%clk 0:02:45]}  Nd7 {[%clk 0:02:43]} 11. g4 {[%clk 0:02:40]}  Nhf6 {[%clk 0:02:42]} 12. Bg3 {[%clk 0:02:26]}  Nxg4 {[%clk 0:02:37]} 13. c4 {[%clk 0:02:24]}  Ngf6 {[%clk 0:02:26]} 14. O-O {[%clk 0:02:19]}  Be7 {[%clk 0:02:21]} 15. e4 {[%clk 0:02:14]}  dxe4 {[%clk 0:02:20]} 16. Nxe4 {[%clk 0:02:14]}  Nxe4 {[%clk 0:02:20]} 17. Qxe4 {[%clk 0:02:14]}  Nf6 {[%clk 0:02:20]} 18. Qd3 {[%clk 0:02:07]}  Rd8 {[%clk 0:02:15]} 19. Rad1 {[%clk 0:02:05]}  Qa5 {[%clk 0:02:14]} 20. Qc2 {[%clk 0:02:04]}  Qh5 {[%clk 0:02:13]} 21. Ne5 {[%clk 0:02:01]}  Nd7 {[%clk 0:02:02]} 22. Nd3 {[%clk 0:01:50]}  O-O {[%clk 0:01:58]} 23. f4 {[%clk 0:01:46]}  Bf6 {[%clk 0:01:50]} 24. Ne5 {[%clk 0:01:44]}  c5 {[%clk 0:01:45]} 25. Nxd7 {[%clk 0:01:39]}  Rxd7 {[%clk 0:01:44]} 26. dxc5 {[%clk 0:01:39]}  Qxc5+ {[%clk 0:01:27]} 27. Kg2 {[%clk 0:01:38]}  Rfd8 {[%clk 0:01:24]} 28. Rxd7 {[%clk 0:01:35]}  Rxd7 {[%clk 0:01:24]} 29. Rd1 {[%clk 0:01:34]}  Qc6+ {[%clk 0:01:23]} 30. Kh3 {[%clk 0:01:26]}  Qc8 {[%clk 0:01:13]} 31. a3 {[%clk 0:01:15]}  Rxd1 {[%clk 0:00:53]} 32. Qxd1 {[%clk 0:01:14]}  e5+ {[%clk 0:00:50]} 33. Kg2 {[%clk 0:01:11]}  Qc6+ {[%clk 0:00:48]} 34. Kh3 {[%clk 0:01:07]}  exf4 {[%clk 0:00:45]} 35. Bxf4 {[%clk 0:01:07]}  g5 {[%clk 0:00:45]} 36. Bg3 {[%clk 0:01:07]}  Qe6+ {[%clk 0:00:43]} 37. Kg2 {[%clk 0:01:06]}  Kg7 {[%clk 0:00:41]} 38. Qd3 {[%clk 0:01:02]}  h5 {[%clk 0:00:39]} 39. h3 {[%clk 0:01:00]}  a6 {[%clk 0:00:36]} 40. b4 {[%clk 0:00:59]}  h4 {[%clk 0:00:31]} 41. Bf2 {[%clk 0:00:57]}  g4 {[%clk 0:00:31]} 42. c5 {[%clk 0:00:54]}  gxh3+ {[%clk 0:00:25]} 43. Qxh3 {[%clk 0:00:45]}  Qe4+ {[%clk 0:00:25]} 44. Kg1 {[%clk 0:00:45]}  Kg6 {[%clk 0:00:23]} 45. Qg2+ {[%clk 0:00:44]}  Qxg2+ {[%clk 0:00:22]} 46. Kxg2 {[%clk 0:00:44]}  Kf5 {[%clk 0:00:20]} 47. Kf3 {[%clk 0:00:42]}  Ke5 {[%clk 0:00:18]} 48. a4 {[%clk 0:00:38]}  Kd5 {[%clk 0:00:17]} 49. b5 {[%clk 0:00:38]}  axb5 {[%clk 0:00:17]} 50. axb5 {[%clk 0:00:37]}  Be7 {[%clk 0:00:15]} 51. c6 {[%clk 0:00:30]}  bxc6 {[%clk 0:00:15]} 52. b6 {[%clk 0:00:30]}  Bd6 {[%clk 0:00:13]} 53. Bxh4 {[%clk 0:00:28]}  c5 {[%clk 0:00:13]} 54. b7 {[%clk 0:00:25]}  Kc6 {[%clk 0:00:11]} 55. Ke4 {[%clk 0:00:25]}  Kxb7 {[%clk 0:00:11]} 56. Kd5 {[%clk 0:00:25]}  Bf8 {[%clk 0:00:11]} 57. Bf2 {[%clk 0:00:25]}  Kb6 {[%clk 0:00:11]} 58. Be3 {[%clk 0:00:25]}  Kb5 {[%clk 0:00:11]} 59. Ke4 {[%clk 0:00:23]}  Be7 {[%clk 0:00:11]} 60. Bd2 {[%clk 0:00:23]}  Kc4 {[%clk 0:00:10]} 61. Kf5 {[%clk 0:00:21]}  Kb3 {[%clk 0:00:10]} 62. Ke4 {[%clk 0:00:21]}  c4 {[%clk 0:00:10]} 63. Be3 {[%clk 0:00:20]}  c3 {[%clk 0:00:10]} 64. Bc1 {[%clk 0:00:19]}  Kc2 {[%clk 0:00:10]} 65. Be3 {[%clk 0:00:19]}  Kd1 {[%clk 0:00:10]} 66. Bf4 {[%clk 0:00:18]}  c2 {[%clk 0:00:10]} 67. Kd5 {[%clk 0:00:18]}  Bb4 {[%clk 0:00:09]} 68. Kc6 {[%clk 0:00:16]}  Bd2 {[%clk 0:00:09]} 69. Be5 {[%clk 0:00:15]}  c1=Q+ {[%clk 0:00:09]} 70. Kd7 {[%clk 0:00:15]}  f5 {[%clk 0:00:09]} 71. Ke6 {[%clk 0:00:12]}  Qc2 {[%clk 0:00:09]} 72. Bf6 {[%clk 0:00:11]}  Qe4+ {[%clk 0:00:10]} 73. Kf7 {[%clk 0:00:04]}  f4 {[%clk 0:00:10]} 0-1


[Site "https://www.chess.com"]

[Event "Titled Tuesday Blitz May 16 Late 2023"]
[White "Matinian, Nikita"]
[Black "Buchenau, Frank"]
[WhiteFideId "24129100"]
[BlackFideId "4604350"]
[WhiteElo "2422"]
[BlackElo "2157"]
[Result "1-0"]
[Round "01"]
[TimeControl "180+2"]
[Date "2023.05.16"]
[WhiteClock "0:00:04"]
[BlackClock "0:00:00"]

1. e4 {[%clk 0:03:00]}  e6 {[%clk 0:03:00]} 2. d4 {[%clk 0:03:00]}  d5 {[%clk 0:03:00]} 3. Nc3 {[%clk 0:03:01]}  Nf6 {[%clk 0:03:00]} 4. Bg5 {[%clk 0:02:59]}  dxe4 {[%clk 0:03:00]} 5. Nxe4 {[%clk 0:02:59]}  Be7 {[%clk 0:03:00]} 6. Bxf6 {[%clk 0:03:00]}  gxf6 {[%clk 0:03:00]} 7. Nf3 {[%clk 0:03:00]}  f5 {[%clk 0:03:00]} 8. Nc3 {[%clk 0:02:59]}  a6 {[%clk 0:03:00]} 9. g3 {[%clk 0:02:56]}  b5 {[%clk 0:03:00]} 10. Bg2 {[%clk 0:02:56]}  Bb7 {[%clk 0:03:00]} 11. O-O {[%clk 0:02:55]}  O-O {[%clk 0:03:00]} 12. a3 {[%clk 0:02:54]}  c5 {[%clk 0:02:57]} 13. Re1 {[%clk 0:02:48]}  cxd4 {[%clk 0:02:46]} 14. Nxd4 {[%clk 0:02:42]}  Bxg2 {[%clk 0:02:45]} 15. Kxg2 {[%clk 0:02:43]}  Ra7 {[%clk 0:02:31]} 16. Nf3 {[%clk 0:02:14]}  Qxd1 {[%clk 0:02:20]} 17. Raxd1 {[%clk 0:02:15]}  Rd7 {[%clk 0:02:16]} 18. Rxd7 {[%clk 0:01:44]}  Nxd7 {[%clk 0:02:16]} 19. Nd5 {[%clk 0:01:45]}  Bd8 {[%clk 0:01:39]} 20. Nb4 {[%clk 0:01:38]}  Nc5 {[%clk 0:01:35]} 21. Ne5 {[%clk 0:01:21]}  Bf6 {[%clk 0:01:28]} 22. Nbc6 {[%clk 0:01:18]}  Rc8 {[%clk 0:01:20]} 23. b3 {[%clk 0:01:08]}  Ne4 {[%clk 0:01:01]} 24. f3 {[%clk 0:01:03]}  Nc3 {[%clk 0:00:42]} 25. f4 {[%clk 0:00:39]}  Kf8 {[%clk 0:00:30]} 26. Re3 {[%clk 0:00:13]}  Nd5 {[%clk 0:00:21]} 27. Re2 {[%clk 0:00:11]}  Bxe5 {[%clk 0:00:20]} 28. Nxe5 {[%clk 0:00:12]}  Rc3 {[%clk 0:00:17]} 29. a4 {[%clk 0:00:10]}  bxa4 {[%clk 0:00:14]} 30. bxa4 {[%clk 0:00:10]}  Ra3 {[%clk 0:00:13]} 31. c4 {[%clk 0:00:09]}  Ne3+ {[%clk 0:00:07]} 32. Kh3 {[%clk 0:00:09]}  f6 {[%clk 0:00:06]} 33. Nd7+ {[%clk 0:00:06]}  Ke7 {[%clk 0:00:06]} 34. Nc5 {[%clk 0:00:07]}  Kd6 {[%clk 0:00:03]} 35. Nxa6 {[%clk 0:00:04]}  e5 {[%clk 0:00:03]} 36. c5+ {[%clk 0:00:03]}  Ke6 {[%clk 0:00:02]} 37. fxe5 {[%clk 0:00:03]}  fxe5 {[%clk 0:00:02]} 38. c6 {[%clk 0:00:04]}  f4 {[%clk 0:00:02]} 39. c7 {[%clk 0:00:03]}  Kd7 {[%clk 0:00:02]} 40. Rd2+ {[%clk 0:00:03]}  Kc8 {[%clk 0:00:01]} 41. Rd8+ {[%clk 0:00:03]}  Kb7 {[%clk 0:00:00]} 42. c8=Q+ {[%clk 0:00:04]} 1-0


[Site "https://www.chess.com"]

[Event "Titled Tuesday Blitz May 16 Late 2023"]
[White "Domingo Nunez, Ruben"]
[Black "a-z30"]
[WhiteFideId "22245570"]
[WhiteElo "2404"]
[BlackElo "2369"]
[Result "1-0"]
[Round "01"]
[TimeControl "180+2"]
[Date "2023.05.16"]
[WhiteClock "0:01:25"]
[BlackClock "0:00:01"]

1. c4 {[%clk 0:03:00]}  e6 {[%clk 0:02:59]} 2. g3 {[%clk 0:02:59]}  d5 {[%clk 0:02:59]} 3. Bg2 {[%clk 0:03:00]}  Nf6 {[%clk 0:02:59]} 4. b3 {[%clk 0:02:57]}  c5 {[%clk 0:02:51]} 5. Bb2 {[%clk 0:02:57]}  Be7 {[%clk 0:02:50]} 6. Nf3 {[%clk 0:02:57]}  O-O {[%clk 0:02:48]} 7. O-O {[%clk 0:02:57]}  Nc6 {[%clk 0:02:42]} 8. d3 {[%clk 0:02:55]}  b6 {[%clk 0:02:39]} 9. Nbd2 {[%clk 0:02:53]}  Bb7 {[%clk 0:02:38]} 10. a3 {[%clk 0:02:53]}  d4 {[%clk 0:02:32]} 11. Ne1 {[%clk 0:02:49]}  Qc7 {[%clk 0:02:29]} 12. Nc2 {[%clk 0:02:49]}  e5 {[%clk 0:02:18]} 13. Rb1 {[%clk 0:02:48]}  a5 {[%clk 0:02:05]} 14. Bc1 {[%clk 0:02:48]}  Nd8 {[%clk 0:01:53]} 15. f3 {[%clk 0:02:48]}  Ne6 {[%clk 0:01:41]} 16. b4 {[%clk 0:02:48]}  axb4 {[%clk 0:01:29]} 17. axb4 {[%clk 0:02:49]}  cxb4 {[%clk 0:01:21]} 18. Nxb4 {[%clk 0:02:49]}  Bxb4 {[%clk 0:01:20]} 19. Rxb4 {[%clk 0:02:50]}  Nc5 {[%clk 0:01:20]} 20. Ne4 {[%clk 0:02:49]}  Nfxe4 {[%clk 0:01:06]} 21. fxe4 {[%clk 0:02:50]}  Ra1 {[%clk 0:00:46]} 22. Qc2 {[%clk 0:02:48]}  Rfa8 {[%clk 0:00:44]} 23. Bd2 {[%clk 0:02:27]}  R8a2 {[%clk 0:00:35]} 24. Rb2 {[%clk 0:02:27]}  Rxf1+ {[%clk 0:00:30]} 25. Kxf1 {[%clk 0:02:27]}  Rxb2 {[%clk 0:00:30]} 26. Qxb2 {[%clk 0:02:27]}  Bc6 {[%clk 0:00:27]} 27. Qa3 {[%clk 0:02:26]}  Qb7 {[%clk 0:00:25]} 28. Bb4 {[%clk 0:02:25]}  Nd7 {[%clk 0:00:12]} 29. Bd6 {[%clk 0:02:25]}  Qa8 {[%clk 0:00:12]} 30. Qb2 {[%clk 0:02:16]}  f6 {[%clk 0:00:10]} 31. Bh3 {[%clk 0:02:16]}  Qa6 {[%clk 0:00:10]} 32. Be6+ {[%clk 0:02:15]}  Kh8 {[%clk 0:00:10]} 33. Kf2 {[%clk 0:02:04]}  h6 {[%clk 0:00:10]} 34. h4 {[%clk 0:02:03]}  Qa7 {[%clk 0:00:08]} 35. Qb4 {[%clk 0:02:02]}  Qa5 {[%clk 0:00:07]} 36. Qb2 {[%clk 0:02:01]}  Qc3 {[%clk 0:00:06]} 37. Qa2 {[%clk 0:01:47]}  Qc1 {[%clk 0:00:05]} 38. Qa7 {[%clk 0:01:42]}  Qe3+ {[%clk 0:00:05]} 39. Kf1 {[%clk 0:01:43]}  Qc1+ {[%clk 0:00:02]} 40. Kg2 {[%clk 0:01:43]}  Qe3 {[%clk 0:00:02]} 41. Bxd7 {[%clk 0:01:26]}  Qxe2+ {[%clk 0:00:01]} 42. Kh3 {[%clk 0:01:27]}  Qf1+ {[%clk 0:00:02]} 43. Kg4 {[%clk 0:01:27]}  Bxd7+ {[%clk 0:00:02]} 44. Qxd7 {[%clk 0:01:27]}  Qe2+ {[%clk 0:00:02]} 45. Kf5 {[%clk 0:01:27]}  Qf3+ {[%clk 0:00:02]} 46. Ke6 {[%clk 0:01:28]}  Qg4+ {[%clk 0:00:02]} 47. Ke7 {[%clk 0:01:28]}  Qxg3 {[%clk 0:00:03]} 48. Kf7 {[%clk 0:01:26]}  Qxd3 {[%clk 0:00:01]} 49. Qe8+ {[%clk 0:01:25]} 1-0


[Site "https://www.chess.com"]

[Event "Titled Tuesday Blitz May 16 Late 2023"]
[White "Xavier_mompel"]
[Black "MKlose11"]
[WhiteElo "2346"]
[BlackElo "2656"]
[Result "0-1"]
[Round "01"]
[TimeControl "180+2"]
[Date "2023.05.16"]
[WhiteClock "0:00:01"]
[BlackClock "0:00:35"]

1. e4 {[%clk 0:02:58]}  e6 {[%clk 0:02:58]} 2. d4 {[%clk 0:02:57]}  d5 {[%clk 0:02:48]} 3. Nc3 {[%clk 0:02:56]}  Bb4 {[%clk 0:02:42]} 4. e5 {[%clk 0:02:56]}  Ne7 {[%clk 0:02:29]} 5. a3 {[%clk 0:02:53]}  Bxc3+ {[%clk 0:02:27]} 6. bxc3 {[%clk 0:02:54]}  b6 {[%clk 0:02:28]} 7. Qg4 {[%clk 0:02:53]}  Ng6 {[%clk 0:02:21]} 8. h4 {[%clk 0:02:39]}  h5 {[%clk 0:02:15]} 9. Qg3 {[%clk 0:02:37]}  Ba6 {[%clk 0:02:16]} 10. Bxa6 {[%clk 0:02:21]}  Nxa6 {[%clk 0:02:16]} 11. Nf3 {[%clk 0:02:13]}  Nb8 {[%clk 0:02:15]} 12. Ng5 {[%clk 0:02:11]}  Qd7 {[%clk 0:02:13]} 13. Be3 {[%clk 0:02:04]}  Nc6 {[%clk 0:02:13]} 14. O-O {[%clk 0:02:02]}  Nge7 {[%clk 0:02:13]} 15. Qf3 {[%clk 0:01:39]}  Nf5 {[%clk 0:02:12]} 16. Bd2 {[%clk 0:01:26]}  Nxh4 {[%clk 0:01:57]} 17. Qh3 {[%clk 0:01:25]}  Ng6 {[%clk 0:01:52]} 18. f4 {[%clk 0:01:24]}  Nge7 {[%clk 0:01:39]} 19. Rae1 {[%clk 0:01:10]}  Na5 {[%clk 0:01:39]} 20. f5 {[%clk 0:01:00]}  O-O-O {[%clk 0:01:15]} 21. Nxf7 {[%clk 0:00:39]}  Nxf5 {[%clk 0:01:13]} 22. Nxd8 {[%clk 0:00:39]}  Rxd8 {[%clk 0:01:06]} 23. g4 {[%clk 0:00:35]}  hxg4 {[%clk 0:01:03]} 24. Qxg4 {[%clk 0:00:36]}  Nc4 {[%clk 0:01:03]} 25. Bc1 {[%clk 0:00:35]}  Rh8 {[%clk 0:00:59]} 26. Rf2 {[%clk 0:00:30]}  Rh4 {[%clk 0:00:53]} 27. Qg5 {[%clk 0:00:30]}  Rh3 {[%clk 0:00:50]} 28. Rg2 {[%clk 0:00:28]}  Rxc3 {[%clk 0:00:47]} 29. Rf1 {[%clk 0:00:18]}  Nxd4 {[%clk 0:00:40]} 30. Rf8+ {[%clk 0:00:15]}  Kb7 {[%clk 0:00:40]} 31. Qg4 {[%clk 0:00:07]}  Nf5 {[%clk 0:00:37]} 32. Rg8 {[%clk 0:00:04]}  Nxe5 {[%clk 0:00:34]} 33. Qg5 {[%clk 0:00:01]}  Nf3+ {[%clk 0:00:35]} 0-1


[Site "https://www.chess.com"]

[Event "Titled Tuesday Blitz May 16 Late 2023"]
[White "Ansh M Shah"]
[Black "Kourkoulos-Arditis, Stamatis"]
[WhiteFideId "25033379"]
[BlackFideId "4221990"]
[WhiteElo "2084"]
[BlackElo "2400"]
[Result "0-1"]
[Round "01"]
[TimeControl "180+2"]
[Date "2023.05.16"]
[WhiteClock "0:01:00"]
[BlackClock "0:00:56"]

1. d4 {[%clk 0:03:00]}  c5 {[%clk 0:02:57]} 2. d5 {[%clk 0:02:54]}  Nf6 {[%clk 0:02:56]} 3. Nc3 {[%clk 0:02:52]}  d6 {[%clk 0:02:56]} 4. e4 {[%clk 0:02:52]}  g6 {[%clk 0:02:57]} 5. Be2 {[%clk 0:02:51]}  Bg7 {[%clk 0:02:57]} 6. a4 {[%clk 0:02:50]}  O-O {[%clk 0:02:56]} 7. h4 {[%clk 0:02:50]}  e6 {[%clk 0:02:49]} 8. dxe6 {[%clk 0:02:51]}  Bxe6 {[%clk 0:02:49]} 9. h5 {[%clk 0:02:52]}  Nc6 {[%clk 0:02:36]} 10. Nf3 {[%clk 0:02:47]}  d5 {[%clk 0:02:34]} 11. exd5 {[%clk 0:02:09]}  Nxd5 {[%clk 0:02:35]} 12. Nxd5 {[%clk 0:02:09]}  Qxd5 {[%clk 0:02:34]} 13. Qxd5 {[%clk 0:02:04]}  Bxd5 {[%clk 0:02:35]} 14. O-O {[%clk 0:01:57]}  Rfe8 {[%clk 0:02:35]} 15. Bb5 {[%clk 0:01:56]}  a6 {[%clk 0:02:36]} 16. Bxc6 {[%clk 0:01:56]}  Bxc6 {[%clk 0:02:37]} 17. c3 {[%clk 0:01:56]}  Re2 {[%clk 0:02:33]} 18. hxg6 {[%clk 0:01:56]}  hxg6 {[%clk 0:02:33]} 19. Be3 {[%clk 0:01:55]}  Bxf3 {[%clk 0:02:23]} 20. gxf3 {[%clk 0:01:55]}  Rxb2 {[%clk 0:02:17]} 21. Bxc5 {[%clk 0:01:55]}  Bxc3 {[%clk 0:02:18]} 22. Ra3 {[%clk 0:01:54]}  Bf6 {[%clk 0:02:16]} 23. Rd1 {[%clk 0:01:52]}  Rc8 {[%clk 0:02:15]} 24. Be3 {[%clk 0:01:50]}  Rc4 {[%clk 0:01:54]} 25. Rd7 {[%clk 0:01:47]}  Kg7 {[%clk 0:01:35]} 26. a5 {[%clk 0:01:40]}  Rc3 {[%clk 0:01:09]} 27. Ra4 {[%clk 0:01:32]}  Rcc2 {[%clk 0:01:07]} 28. Rf4 {[%clk 0:01:24]}  Rc6 {[%clk 0:00:59]} 29. Rxf6 {[%clk 0:01:12]}  Rb1+ {[%clk 0:00:57]} 30. Kg2 {[%clk 0:01:06]}  Kxf6 {[%clk 0:00:57]} 31. Bb6 {[%clk 0:01:02]}  Rbxb6 {[%clk 0:00:55]} 32. axb6 {[%clk 0:01:00]}  Rxb6 {[%clk 0:00:56]} 0-1


[Site "https://www.chess.com"]

[Event "Titled Tuesday Blitz May 16 Late 2023"]
[White "Fishbein, Mitch"]
[Black "Prieto Aranguren, Alain"]
[WhiteFideId "30922917"]
[BlackFideId "2268906"]
[WhiteElo "1964"]
[BlackElo "2209"]
[Result "1/2-1/2"]
[Round "01"]
[TimeControl "180+2"]
[Date "2023.05.16"]
[WhiteClock "0:00:07"]
[BlackClock "0:00:08"]

1. e4 {[%clk 0:02:59]}  c6 {[%clk 0:02:59]} 2. d4 {[%clk 0:02:58]}  d5 {[%clk 0:03:00]} 3. Nc3 {[%clk 0:02:58]}  dxe4 {[%clk 0:02:59]} 4. Nxe4 {[%clk 0:02:58]}  Nf6 {[%clk 0:03:00]} 5. Qd3 {[%clk 0:02:55]}  Nxe4 {[%clk 0:02:59]} 6. Qxe4 {[%clk 0:02:55]}  Nd7 {[%clk 0:02:53]} 7. Nf3 {[%clk 0:02:52]}  Nf6 {[%clk 0:02:52]} 8. Qd3 {[%clk 0:02:51]}  Bg4 {[%clk 0:02:48]} 9. Be2 {[%clk 0:02:48]}  e6 {[%clk 0:02:48]} 10. O-O {[%clk 0:02:47]}  Bd6 {[%clk 0:02:48]} 11. Qb3 {[%clk 0:02:44]}  Qc7 {[%clk 0:02:46]} 12. h3 {[%clk 0:02:39]}  Bh5 {[%clk 0:02:46]} 13. c4 {[%clk 0:02:35]}  c5 {[%clk 0:02:45]} 14. Be3 {[%clk 0:02:33]}  cxd4 {[%clk 0:02:43]} 15. Bxd4 {[%clk 0:02:25]}  O-O {[%clk 0:02:39]} 16. Rac1 {[%clk 0:02:14]}  Bc5 {[%clk 0:02:34]} 17. Be5 {[%clk 0:02:09]}  Qb6 {[%clk 0:02:32]} 18. Qxb6 {[%clk 0:02:01]}  axb6 {[%clk 0:02:29]} 19. a3 {[%clk 0:02:01]}  Ne4 {[%clk 0:02:23]} 20. Bd3 {[%clk 0:01:12]}  Bxf3 {[%clk 0:02:17]} 21. gxf3 {[%clk 0:01:13]}  Nd2 {[%clk 0:02:13]} 22. Kg2 {[%clk 0:01:04]}  Nxf1 {[%clk 0:02:12]} 23. Bxf1 {[%clk 0:01:04]}  Rfd8 {[%clk 0:02:10]} 24. b4 {[%clk 0:00:57]}  Bd6 {[%clk 0:02:08]} 25. Bd4 {[%clk 0:00:54]}  Bf4 {[%clk 0:02:07]} 26. Be3 {[%clk 0:00:46]}  Bxe3 {[%clk 0:02:06]} 27. fxe3 {[%clk 0:00:47]}  Rxa3 {[%clk 0:02:04]} 28. e4 {[%clk 0:00:42]}  Rd2+ {[%clk 0:01:58]} 29. Kg3 {[%clk 0:00:42]}  h5 {[%clk 0:01:57]} 30. h4 {[%clk 0:00:41]}  Rb2 {[%clk 0:01:52]} 31. c5 {[%clk 0:00:41]}  Rxb4 {[%clk 0:01:48]} 32. cxb6 {[%clk 0:00:39]}  Rxb6 {[%clk 0:01:46]} 33. Kf4 {[%clk 0:00:31]}  e5+ {[%clk 0:01:44]} 34. Kxe5 {[%clk 0:00:27]}  Rxf3 {[%clk 0:01:36]} 35. Rc8+ {[%clk 0:00:27]}  Kh7 {[%clk 0:01:36]} 36. Bc4 {[%clk 0:00:28]}  f6+ {[%clk 0:01:33]} 37. Kd4 {[%clk 0:00:27]}  Rf4 {[%clk 0:01:27]} 38. Bg8+ {[%clk 0:00:21]}  Kg6 {[%clk 0:01:19]} 39. Rf8 {[%clk 0:00:19]}  Rxh4 {[%clk 0:01:17]} 40. Bf7+ {[%clk 0:00:19]}  Kh7 {[%clk 0:01:15]} 41. Bg8+ {[%clk 0:00:19]}  Kg6 {[%clk 0:01:15]} 42. Bf7+ {[%clk 0:00:19]}  Kg5 {[%clk 0:01:13]} 43. Rg8 {[%clk 0:00:19]}  Kf4 {[%clk 0:01:02]} 44. Rxg7 {[%clk 0:00:18]}  Kf3 {[%clk 0:00:57]} 45. Bd5 {[%clk 0:00:18]}  f5 {[%clk 0:00:55]} 46. Rf7 {[%clk 0:00:16]}  Rf4 {[%clk 0:00:51]} 47. Ke5 {[%clk 0:00:14]}  Ke3 {[%clk 0:00:34]} 48. exf5 {[%clk 0:00:14]}  h4 {[%clk 0:00:32]} 49. Rc7 {[%clk 0:00:12]}  Rf2 {[%clk 0:00:28]} 50. Be6 {[%clk 0:00:08]}  h3 {[%clk 0:00:23]} 51. Rc3+ {[%clk 0:00:08]}  Kd2 {[%clk 0:00:22]} 52. Rxh3 {[%clk 0:00:09]}  Rb5+ {[%clk 0:00:20]} 53. Kf6 {[%clk 0:00:08]}  b6 {[%clk 0:00:18]} 54. Rh8 {[%clk 0:00:07]}  Rc5 {[%clk 0:00:17]} 55. Rb8 {[%clk 0:00:06]}  b5 {[%clk 0:00:15]} 56. Ke7 {[%clk 0:00:05]}  Kc3 {[%clk 0:00:12]} 57. f6 {[%clk 0:00:05]}  b4 {[%clk 0:00:12]} 58. f7 {[%clk 0:00:05]}  Re5 {[%clk 0:00:09]} 59. f8=Q {[%clk 0:00:05]}  Rxf8 {[%clk 0:00:09]} 60. Rxf8 {[%clk 0:00:06]}  b3 {[%clk 0:00:08]} 61. Rf3+ {[%clk 0:00:06]}  Kc2 {[%clk 0:00:08]} 62. Rxb3 {[%clk 0:00:06]}  Rxe6+ {[%clk 0:00:08]} 63. Kxe6 {[%clk 0:00:07]}  Kxb3 {[%clk 0:00:08]} 1/2-1/2


[Site "https://www.chess.com"]

[Event "Titled Tuesday Blitz May 16 Late 2023"]
[White "Maltsevskaya, Aleksandra"]
[Black "Peatman, Carter"]
[WhiteFideId "24174041"]
[BlackFideId "2096480"]
[WhiteElo "2302"]
[BlackElo "2003"]
[Result "1-0"]
[Round "01"]
[TimeControl "180+2"]
[Date "2023.05.16"]
[WhiteClock "0:01:08"]
[BlackClock "0:00:00"]

1. e4 {[%clk 0:03:00]}  e5 {[%clk 0:02:58]} 2. Nf3 {[%clk 0:03:00]}  Nf6 {[%clk 0:02:59]} 3. Nxe5 {[%clk 0:02:58]}  d6 {[%clk 0:02:59]} 4. Nf3 {[%clk 0:02:59]}  Nxe4 {[%clk 0:03:00]} 5. Nc3 {[%clk 0:03:00]}  Nxc3 {[%clk 0:02:59]} 6. dxc3 {[%clk 0:03:01]}  Be7 {[%clk 0:02:57]} 7. Be3 {[%clk 0:03:02]}  Nc6 {[%clk 0:02:57]} 8. Qd2 {[%clk 0:03:02]}  h6 {[%clk 0:02:55]} 9. O-O-O {[%clk 0:03:03]}  Be6 {[%clk 0:02:54]} 10. h4 {[%clk 0:03:04]}  a6 {[%clk 0:02:53]} 11. Kb1 {[%clk 0:03:04]}  Qd7 {[%clk 0:02:54]} 12. Bd3 {[%clk 0:02:59]}  O-O-O {[%clk 0:02:53]} 13. Qe2 {[%clk 0:02:59]}  Kb8 {[%clk 0:02:41]} 14. Rd2 {[%clk 0:02:41]}  Bg4 {[%clk 0:02:34]} 15. Rhd1 {[%clk 0:02:40]}  Bf6 {[%clk 0:02:17]} 16. Bxa6 {[%clk 0:02:23]}  Ne5 {[%clk 0:01:28]} 17. Bb5 {[%clk 0:02:10]}  Qf5 {[%clk 0:01:17]} 18. Bd3 {[%clk 0:02:03]}  Nxd3 {[%clk 0:01:10]} 19. Rxd3 {[%clk 0:02:04]}  Bxf3 {[%clk 0:01:09]} 20. gxf3 {[%clk 0:02:04]}  Bxh4 {[%clk 0:01:09]} 21. Rd5 {[%clk 0:02:04]}  Qd7 {[%clk 0:01:02]} 22. Qc4 {[%clk 0:02:03]}  Bf6 {[%clk 0:00:58]} 23. Ra5 {[%clk 0:02:03]}  b6 {[%clk 0:00:46]} 24. Ra3 {[%clk 0:01:59]}  Qc8 {[%clk 0:00:43]} 25. Rb3 {[%clk 0:01:52]}  Qb7 {[%clk 0:00:33]} 26. a4 {[%clk 0:01:51]}  d5 {[%clk 0:00:33]} 27. Qb5 {[%clk 0:01:44]}  Rd6 {[%clk 0:00:17]} 28. a5 {[%clk 0:01:44]}  Ka7 {[%clk 0:00:17]} 29. axb6+ {[%clk 0:01:44]}  cxb6 {[%clk 0:00:17]} 30. Qa5+ {[%clk 0:01:39]}  Kb8 {[%clk 0:00:17]} 31. Bxb6 {[%clk 0:01:39]}  Kc8 {[%clk 0:00:13]} 32. Bc5 {[%clk 0:01:39]}  Ra6 {[%clk 0:00:11]} 33. Qb4 {[%clk 0:01:08]}  Qxb4 {[%clk 0:00:11]} 34. cxb4 {[%clk 0:01:08]}  Rd8 {[%clk 0:00:06]} 35. Ra3 {[%clk 0:01:08]}  Rxa3 {[%clk 0:00:06]} 36. bxa3 {[%clk 0:01:09]}  Kb7 {[%clk 0:00:07]} 37. a4 {[%clk 0:01:10]}  Kc6 {[%clk 0:00:06]} 38. Ka2 {[%clk 0:01:10]}  d4 {[%clk 0:00:06]} 39. Kb3 {[%clk 0:01:10]}  Rd5 {[%clk 0:00:05]} 40. Kc4 {[%clk 0:01:10]}  Rf5 {[%clk 0:00:06]} 41. b5+ {[%clk 0:01:10]}  Kc7 {[%clk 0:00:05]} 42. a5 {[%clk 0:01:10]}  Rxf3 {[%clk 0:00:06]} 43. a6 {[%clk 0:01:09]}  Rc3+ {[%clk 0:00:06]} 44. Kd5 {[%clk 0:01:09]}  Rxc2 {[%clk 0:00:06]} 45. b6+ {[%clk 0:01:09]}  Kb8 {[%clk 0:00:06]} 46. a7+ {[%clk 0:01:07]}  Kb7 {[%clk 0:00:00]} 47. Ra1 {[%clk 0:01:08]} 1-0


[Site "https://www.chess.com"]